Cogmind - Beta 16 --- EXPLORER MODE // 2025.12.18 @ 10:31:10 Player: K.K.Y. Result: Destroyed by L-41 Fighter with Axe Performance ------------- Evolutions (0) 0 Regions Visited (4) 800 Robots Destroyed (64) 320 Value Destroyed (1594) 1594 Prototype IDs (12) 240 Alien Tech Used (0) 0 Bonus (25) 25 TOTAL SCORE: 2979 Bonus ------- Follower Combat Kills 25 Cogmind --------- Core Integrity 0/250 Matter 276/300 Energy 275/275 System Corruption 0% Temperature Cool (28) Movement Treading (225) Ox1 Location -7/Recycling Parts ------- > --- POWER (1) -------- Deuterium Engine > --- PROPULSION (2) --- Advanced Treads > --- UTILITY (3) ------ (None) > --- WEAPON (2) ------- Gauss Cannon Gauss Cannon > --- INVENTORY (5) ---- Tower Shield Cobbler Unit Subdweller Shrapnel Launcher Peak State ------------ > --- POWER ------------ Deuterium Engine > --- PROPULSION ------- Advanced Treads Medium Treads > --- UTILITY ---------- Light Humpback > --- WEAPON ----------- Makeshift Shrapnel Gun Flail > --- INVENTORY -------- Medium Storage Unit Tower Shield Makeshift System Restoration Module Makeshift System Restoration Module Cobbler Unit Particle Gun Subdweller Shrapnel Launcher Plasma Flamer SUBCON Basin [Rating: 40] Favorites ----------- Power Improved Ion Engine Engine Improved Ion Engine Propulsion Light Treads Treads Light Treads Utility Sensor Array Device Sensor Array Storage Medium Storage Unit Processor Targeting Computer Protection Makeshift Thermal Plating Weapon Flail Energy Gun EM Shotgun Energy Cannon Subdweller Beam Cannon Ballistic Gun Makeshift Shrapnel Gun Ballistic Cannon Light Cannon Impact Weapon Flail Build | -11 -10 -10 -10 -7 ------- Run | Yrd Mat Min Sub Rec Slots Evolved 1 | . 1 . . . Power . | . . . . . Propulsion . | . . . . . Utility 1 | . 1 . . . Weapon . | . . . . . Parts Attached 37 | 7 9 4 12 5 Power 4 | 1 1 1 . 1 Engine 4 | 1 1 1 . 1 Core . | . . . . . Reactor . | . . . . . Propulsion 11 | 2 2 3 2 2 Treads 11 | 2 2 3 2 2 Leg . | . . . . . Wheel . | . . . . . Hover . | . . . . . Flight . | . . . . . Utility 8 | 2 2 . 4 . Device 4 | 1 2 . 1 . Storage 2 | . . . 2 . Processor 1 | 1 . . . . Hackware . | . . . . . Protection 1 | . . . 1 . Artifact . | . . . . . Weapon 14 | 2 4 . 6 2 Energy Gun 6 | . 3 . 3 . Energy Cannon 1 | . . . 1 . Ballistic Gun 3 | 2 . . 1 . Ballistic Cannon 3 | . 1 . . 2 Launcher . | . . . . . Special Weapon . | . . . . . Impact Weapon 1 | . . . 1 . Slashing Weapon . | . . . . . Piercing Weapon . | . . . . . Special Melee Weapon . | . . . . . Unidentified Prototypes . | . . . . . Parts Lost 8 | . . . 5 3 Power 1 | . . . 1 . Propulsion 1 | . . . . 1 Utility 3 | . . . 2 1 Weapon 3 | . . . 2 1 Highest Loss Streak 2 | . . . 2 2 To Critical Strikes . | . . . . . Average Backups 6 | 2 4 5 7 4 Power . | . . . . . Propulsion . | . . . . . Utility 3 | 1 2 3 4 2 Weapon 2 | . 1 2 3 1 Tool/Special . | . . . . . Unused Backups 15 | 1 2 1 6 5 Power 1 | . . . 1 . Propulsion 1 | . . . 1 . Utility 6 | . 1 . 2 3 Weapon 7 | 1 1 1 2 2 Tool/Special . | . . . . . Average Slot Usage (%) 82 | . 95 100 80 55 Engine 8 | . 11 12 6 11 Treads 24 | . 24 25 25 18 Device 17 | . 31 37 12 . Storage 7 | . . . 10 3 Energy Gun 5 | . 9 12 3 . Energy Cannon 1 | . . . 1 . Ballistic Gun 4 | . 4 . 5 6 Ballistic Cannon 4 | . 9 12 2 3 Impact Weapon 7 | . . . 10 10 Peak Build Rating 40 | 7 13 15 38 40 Average Rating 18 | 6 11 14 20 20 On Entrance 13 | . 7 13 15 34 Avg Prop Armor Cover (%) . | . . . . . Naked Turns . | . . . . . Heaviest Build 53 | 8 14 16 44 53 Greatest Support 50 | 40 40 40 40 50 Greatest Overweight (x) 2 | . 2 . 1 1 Average Overweight (x) . | . . . . . Largest Inventory Capacity 25 | 5 5 5 25 25 Average Capacity 10 | 5 5 5 13 10 Most Carried 25 | 5 5 5 25 25 Average Carried 9 | 2 4 5 12 10 Final Capacity 25 | 5 5 5 25 5 Final Carried 25 | 3 5 5 25 5 Class Distribution -------------------- 90% | Hacker-Mutant 9% | Scavenger-Mutant Dominant Class ---------------- Hacker-Mutant | -10/Materials Scavenger-Mutant | -10/Mines Hacker-Mutant | -10/Subcaves Hacker-Mutant | -7/Recycling Resources | -11 -10 -10 -10 -7 ----------- Run | Yrd Mat Min Sub Rec Matter Collected 1702 | 259 407 80 821 135 Remotely . | . . . . . Salvage Created 2233 | 272 618 145 798 400 Parts 120 | 19 28 17 45 11 Haulers Intercepted 2 | . 2 . . . Recyclers Shooed 5 | . 1 . . 4 Parts Field Recycled . | . . . . . Retrieved Matter . | . . . . . Parts Self-Destructed . | . . . . . Prevented . | . . . . . Parts Restored . | . . . . . Kills | -11 -10 -10 -10 -7 ------- Run | Yrd Mat Min Sub Rec Combat Hostiles Destroyed 36 | . 8 2 23 3 Melee 3 | . . . 3 . Guns 20 | . 7 1 11 1 Cannons 6 | . 1 1 3 1 AOE 1 | . . . 1 . Classes Destroyed 12 | 2 5 1 3 1 Worker 2 | . . 2 . . Tunneler 11 | 9 . 2 . . Hauler 2 | . 2 . . . Recycler 7 | 1 2 . . 4 Mechanic 1 | . 1 . . . Turret 2 | . . . 2 . Watcher 3 | . 3 . . . Swarmer 6 | . 2 . 4 . Grunt 11 | . 6 2 3 . Sentry 3 | . . . 1 2 Demolisher 1 | . . . . 1 Subdweller 15 | . . . 15 . Best Kill Streak 4 | 4 3 2 2 3 Combat Bots Only 2 | . 2 2 2 1 Max Kills in Single Turn 2 | 1 2 1 1 1 Gunslinging . | . . . . . Exploded 1 | . . . 1 . Melee 1 | . . . 1 . Uniques/NPCs Destroyed . | . . . . . Combat | -11 -10 -10 -10 -7 -------- Run | Yrd Mat Min Sub Rec Hostile Shots Fired 304 | . 36 12 180 76 Missed 111 | . 12 6 76 17 Hits 193 | . 24 6 104 59 Melee 1 | . . . . 1 Projectile 192 | . 24 6 104 58 Damage Taken 1431 | . 192 43 903 293 Core 260 | . 46 20 140 54 Absorbed by Shields . | . . . . . Ignored by Resistances 910 | . 125 27 550 208 Core Remaining (%) 100 | 100 . . . . Volleys Fired 189 | 34 43 10 85 17 Largest 2 | 2 2 2 2 2 Hottest 95 | 40 95 75 80 80 Shots Fired 282 | 68 78 20 97 19 Gun 213 | 68 64 10 56 15 Cannon 69 | . 14 10 41 4 Launcher . | . . . . . Special . | . . . . . Kinetic 188 | 68 56 10 35 19 Thermal 64 | . 18 . 46 . Explosive . | . . . . . Electromagnetic 30 | . 4 10 16 . Robot Hit Streak 40 | 25 30 25 40 12 Robot Miss Streak 2 | 1 1 1 2 2 Penetration Max . | . . . . . Secondary Targets . | . . . . . Shots Hit Robots 249 | 59 62 16 87 25 Core Hits 117 | 19 31 12 40 15 Critical Kills . | . . . . . Critical Parts Destroyed 9 | . 1 . 8 . Critical Strikes 14 | . 4 . 10 . Burn 3 | . 3 . . . Destroy 2 | . 1 . 1 . Smash 9 | . . . 9 . Melee Attacks 67 | . . . 61 6 Impact 67 | . . . 61 6 Slashing . | . . . . . Piercing . | . . . . . Sneak Attacks 1 | . . . . 1 Combat Hostiles . | . . . . . Follow-up Attacks . | . . . . . Damage Inflicted 4118 | 476 733 255 2020 634 Guns 2604 | 476 624 153 1008 343 Cannons 610 | . 109 102 287 112 Explosions 56 | . . . 56 . Melee 848 | . . . 669 179 Ramming . | . . . . . Kinetic 2004 | 476 391 102 580 455 Thermal 838 | . 271 . 567 . Explosive . | . . . . . Electromagnetic 428 | . 71 153 204 . Impact 848 | . . . 669 179 Slashing . | . . . . . Piercing . | . . . . . Highest Corruption . | . . . . . Average Corruption . | . . . . . Corruption Purged . | . . . . . Corruption Blocked . | . . . . . Overload Shots . | . . . . . Overflow Damage 302 | . . . 302 . Projectiles . | . . . . . Explosions . | . . . . . Melee 302 | . . . 302 . Knockbacks 13 | . 3 3 7 . Impact 5 | . . . 5 . Kinetic 8 | . 3 3 2 . Secondary . | . . . . . Self-Inflicted Damage . | . . . . . Shots . | . . . . . Rammed . | . . . . . Targets Rammed . | . . . . . Kicked . | . . . . . Crushed . | . . . . . Highest Temperature 28 | . 20 . 20 28 Average Temperature 6 | . 10 . 3 8 Received Heat Transfer 678 | . 153 39 354 132 Siege Activations . | . . . . . Martial Activations . | . . . . . Shielding Activations . | . . . . . Robots Disrupted . | . . . . . Combat Hostiles . | . . . . . Robots Corrupted 6 | . . . 5 1 Combat Hostiles 6 | . . . 5 1 Parts Fried 4 | . . . 4 . Impact Corruptions 13 | . . . 12 1 Robots Melted . | . . . . . Combat Hostiles . | . . . . . Parts Melted 3 | . 1 . 2 . Heat Transferred 1548 | . 851 . 697 . Parts Sabotaged . | . . . . . Parts Stolen . | . . . . . Parts Stripped . | . . . . . Power Chain Reactions 1 | . . . 1 . Alert | -11 -10 -10 -10 -7 ------- Run | Yrd Mat Min Sub Rec Maximum Alert Level . | . . . . . Low Security (%) 100 | 100 100 100 . 100 Level 1 . | . . . . . Level 2 . | . . . . . Level 3 . | . . . . . Level 4 . | . . . . . Level 5 . | . . . . . High Security . | . . . . . Max Security . | . . . . . Peak Influence 57 | 10 57 51 . 20 Initial . | . . . . . Average 3 | 1 6 1 . . Influence Increases 943 | 50 254 79 480 80 Destroy 0b10 Robot/C 480 | . 160 40 220 60 Destroy 0b10 Robot/NC 130 | 50 40 20 . 20 Destroy Leader 80 | . 50 10 20 . Allied During Kill 1 | . . 1 . . Disable Machine 12 | . 4 8 . . Lose Combat Pursuer 240 | . . . 240 . Influence Decreases 938 | 50 254 79 480 75 Time Decay 888 | 50 254 79 430 75 Lost Part 30 | . . . 30 . Lost Ally 20 | . . . 20 . Squads Dispatched . | . . . . . Investigation . | . . . . . Extermination . | . . . . . Reinforcement . | . . . . . Assault . | . . . . . Garrison . | . . . . . Intercept . | . . . . . Searches Triggered . | . . . . . Construction Impeded . | . . . . . Haulers Reinforced . | . . . . . Active Scanning Responses . | . . . . . Cargo Convoy Interrupts . | . . . . . Stealth | -11 -10 -10 -10 -7 --------- Run | Yrd Mat Min Sub Rec Distress Signals . | . . . . . Communications Jammed . | . . . . . Distress Signals . | . . . . . Times Spotted 65 | . 15 3 41 6 Peak Tracking Total 3 | . 3 2 2 3 Tactical Retreats 5 | . . . 5 . Traps | -11 -10 -10 -10 -7 ------- Run | Yrd Mat Min Sub Rec Traps Triggered 7 | . 6 . 1 . Indirectly . | . . . . . Trap Hack Attempts . | . . . . . Triggered . | . . . . . Disarmed . | . . . . . Reprogrammed . | . . . . . Reused . | . . . . . Traps Extracted . | . . . . . Installed . | . . . . . Triggered . | . . . . . Machines | -11 -10 -10 -10 -7 ---------- Run | Yrd Mat Min Sub Rec Machines Disabled 5 | . 1 2 2 . Max in Single Turn 1 | . 1 1 1 . Machines Repaired . | . . . . . Machines Dismantled . | . . . . . Machines Sabotaged . | . . . . . Overloaded Fab Kills . | . . . . . Hacking | -11 -10 -10 -10 -7 --------- Run | Yrd Mat Min Sub Rec Machines Accessed 10 | . 3 . 4 3 Terminals 1 | . 1 . . . Fabricators . | . . . . . Repair Stations 1 | . 1 . . . Recycling Units 4 | . 1 . . 3 Scanalyzers . | . . . . . Garrison Access . | . . . . . Total Hacks 19 | . 3 . 7 9 Successful 14 | . 2 . 7 5 Failed 5 | . 1 . . 4 Catastrophic . | . . . . . Database Lockouts . | . . . . . Manual 5 | . 1 . . 4 Terminals 1 | . 1 . . . Fabricators . | . . . . . Repair Stations 1 | . 1 . . . Recycling Units 10 | . 1 . . 9 Scanalyzers . | . . . . . Garrison Access . | . . . . . Terminal Hacks 7 | . . . 7 . Record 4 | . . . 4 . Open Door 1 | . . . 1 . Proto ID Catalog 1 | . . . 1 . Release Object 1 | . . . 1 . Fabricator Hacks . | . . . . . Repair Station Hacks . | . . . . . Recycling Unit Hacks 4 | . 1 . . 3 Retrieve Components 4 | . 1 . . 3 Scanalyzer . | . . . . . Garrison Access Hacks . | . . . . . Unauthorized Hacks 3 | . 1 . . 2 Terminals 1 | . 1 . . . Botnet 1 | . 1 . . . Fabricators . | . . . . . Repair Stations . | . . . . . Recycling Units 2 | . . . . 2 Reject 2 | . . . . 2 Scanalyzers . | . . . . . Garrison Access . | . . . . . Data Cores Recovered . | . . . . . Used . | . . . . . Hacking Detections 2 | . 1 . . 1 Full Trace Events 1 | . . . . 1 Feedback Events . | . . . . . Feedback Blocked . | . . . . . Robot Schematics Acquired . | . . . . . Robots Built . | . . . . . Authchips . | . . . . . Time . | . . . . . Total Robot Build Rating . | . . . . . Part Schematics Acquired . | . . . . . Parts Built . | . . . . . Authchips . | . . . . . Time . | . . . . . Total Part Build Rating . | . . . . . Part Studies Acquired . | . . . . . Parts Repaired . | . . . . . Time . | . . . . . Parts Recycled . | . . . . . Recycled Matter . | . . . . . Retrieved Matter . | . . . . . Retrieved Components 13 | . 2 . . 11 Parts Scanalyzed . | . . . . . Part Schematics Acquired . | . . . . . Parts Damaged . | . . . . . Bothacking | -11 -10 -10 -10 -7 ------------ Run | Yrd Mat Min Sub Rec Used RIF Installer . | . . . . . Robots Hacked . | . . . . . Non-combat . | . . . . . Combat . | . . . . . Robot Hacks Applied . | . . . . . Relay Couplers Released . | . . . . . Fabnet Peak Effective % . | . . . . . Robots Rewired . | . . . . . Allies Hacked . | . . . . . Hacks Repelled . | . . . . . Allies | -11 -10 -10 -10 -7 -------- Run | Yrd Mat Min Sub Rec Total Allies 2 | . . 2 . . Largest Group 2 | . . 2 2 . Highest-Rated Group 44 | . . 44 44 . Highest-Rated Ally 31 | . . 31 31 . Total Orders . | . . . . . Ally Attacks 28 | . . 6 22 . Total Damage 304 | . . 41 263 . Kills 1 | . . . 1 . Allies Corrupted . | . . . . . Allies Melted . | . . . . . Intel | -11 -10 -10 -10 -7 ------- Run | Yrd Mat Min Sub Rec Active Infowar (turns) 3729 | 258 1110 1291 1070 . Sensors 3729 | 258 1110 1291 1070 . Terrain 2545 | . 783 1291 471 . Robot Analysis Total . | . . . . . Derelict Logs Recovered 4 | . . 2 2 . Drone Launches . | . . . . . Drone Recoveries . | . . . . . Exploration | -11 -10 -10 -10 -7 ------------- Run | Yrd Mat Min Sub Rec Turns Passed 9204 | 272 1110 1291 5570 961 Spaces Moved 4658 | 106 579 746 2717 510 Core 16 | 13 3 . . . Treads 4642 | 93 576 746 2717 510 Legs . | . . . . . Wheels . | . . . . . Hover . | . . . . . Flight . | . . . . . Fastest Speed 50 | 50 100 160 160 145 Average Speed 170 | 146 159 160 175 174 Slowest Speed 260 | 160 160 160 260 260 Overloaded Moves . | . . . . . Propulsion Burnouts . | . . . . . Robots Hopped . | . . . . . Potential Cave-ins . | . . . . . Cave-ins Triggered . | . . . . . Exploration Rate (%) 72 | 6 79 100 96 80 Regions Visited 4 Branch Regions 3 Pre-discovered Areas 4 | . . 1 3 . Known Exits Taken 4 | 1 1 1 1 . Unknown Exits Taken . | . . . . . Scrap Searched 15 | . . 1 14 . Spaces Dug 3 | . . . 3 . Terrain Destroyed 10 | . . . 10 . Melee 3 | . . . 3 . Projectile . | . . . . . AOE 7 | . . . 7 . Terrain Rammed . | . . . . . Walls Destroyed . | . . . . . Machines Disabled . | . . . . . Actions | -11 -10 -10 -10 -7 --------- Run | Yrd Mat Min Sub Rec Total 5580 | 169 691 826 3336 558 Wait 549 | 11 31 61 432 14 Move 4654 | 105 578 745 2716 510 Hop . | . . . . . Pick Up 30 | 11 6 1 12 . Fast Attach 20 | . 16 . 1 3 Attach 15 | 7 2 . 6 . Detach 3 | . 1 . 2 . Swap 19 | . 5 4 6 4 Drop 34 | 1 9 5 15 4 Fire 189 | 34 43 10 85 17 Melee 67 | . . . 61 6 Ram . | . . . . . Kick . | . . . . . Crush . | . . . . . Escape Stasis . | . . . . . Rewire . | . . . . . Trap . | . . . . . Miscellaneous . | . . . . . Route ------- -11/Scrapyard -10/Materials (discovered 3 exits: *Mat x2 / *Min) -10/Mines (discovered 3 exits: *Mat x2 / *Sub) -10/Subcaves (discovered 3 exits: *Mat x2 / *Rec) -7/Recycling (discovered 1 exit: *Fac) History --------- Turn | Location | Event 11 | -11/Scrapyard | Identified exit to Materials 11 | -11/Scrapyard | Discovered exit to Materials (range 16) 273 | -11/Scrapyard | Entered Materials 273 | -10/Materials | Evolved 1 slot: Utility x1 303 | -10/Materials | Build established: Hacker-Mutant 573 | -10/Materials | Identified exit to Mines 573 | -10/Materials | Discovered exit to Mines (range 6) 800 | -10/Materials | Identified exit to Materials 800 | -10/Materials | Discovered exit to Materials (range 7) 932 | -10/Materials | Discovered exit to Materials (range 15) 1383 | -10/Materials | Entered Mines 1589 | -10/Mines | A weapon hastily lodged in a ceiling crevice suddenly fell to the ground 1614 | -10/Mines | Build established: Scavenger-Mutant 1623 | -10/Mines | Learned location of Storage (-7) 1749 | -10/Mines | Discovered exit to Materials (range 8) 2016 | -10/Mines | Discovered exit to Materials (range 12) 2029 | -10/Mines | Learned Materials garrison access intel 2188 | -10/Mines | Joined a pair of Derelicts in attacking an 0b10 outpost 2519 | -10/Mines | Build established: Hacker-Mutant 2621 | -10/Mines | Identified exit to Subcaves 2621 | -10/Mines | Discovered exit to Subcaves (range 5) 2674 | -10/Mines | Entered Subcaves 2674 | -10/Subcaves | Accompanied by 2 allies 2675 | -10/Subcaves | Approached by a straggling Scientist 2679 | -10/Subcaves | Led the pair of lost Derelicts to an unsafe place 2706 | -10/Subcaves | Shifting Twisted Machinery released Sub. Shrapnel Launcher 2994 | -10/Subcaves | Learned location of Zion (-6) 2994 | -10/Subcaves | Met a Zionite searching for "candidates" 3075 | -10/Subcaves | Visited Clippyterm 3079 | -10/Subcaves | Learned location of Extension (-5) 3141 | -10/Subcaves | Disturbed a concealed Subdweller 3446 | -10/Subcaves | Shifting Twisted Machinery released Flamer 3554 | -10/Subcaves | A swath of the cavern ceiling suddenly collapsed 3598 | -10/Subcaves | Identified exit to Recycling 3598 | -10/Subcaves | Discovered exit to Recycling (range 10) 3653 | -10/Subcaves | Core integrity fell below 50% 3755 | -10/Subcaves | Identified exit to Materials 3755 | -10/Subcaves | Discovered exit to Materials (range 16) 3763 | -10/Subcaves | Shifting Twisted Machinery released Sub. Power Source 3926 | -10/Subcaves | Discovered exit to Materials (range 15) 4018 | -10/Subcaves | Disturbed a concealed Subdweller 4551 | -10/Subcaves | Learned Materials security intel 4608 | -10/Subcaves | Visited 4L-MR0's lab 4627 | -10/Subcaves | Found Tower Shield 4812 | -10/Subcaves | A swath of the cavern ceiling suddenly collapsed 5050 | -10/Subcaves | Disturbed a concealed Subdweller 5168 | -10/Subcaves | Shifting Twisted Machinery released Flamer 5169 | -10/Subcaves | Shifting Twisted Machinery released Sub. Power Source 6901 | -10/Subcaves | Found SUBCON Basin 7627 | -10/Subcaves | Core integrity fell below 20% 8244 | -10/Subcaves | Entered Recycling 8597 | -7/Recycling | Scanned before Scraplab entrance 8727 | -7/Recycling | Identified exit to Factory 8727 | -7/Recycling | Discovered exit to Factory (range 16) 9205 | -7/Recycling | Destroyed by L-41 Fighter with Axe Last Messages --------------- Retrieving 8 components... Mak. System Restoration Module Med. Storage Unit Corrupted Lgt. Treads Corrupted Gatling Laser Mak. System Restoration Module Particle Gun Plasma Flamer Tractor Beam 08901_ Connecting with Recycling Unit... 09045_ Acquired Gauss Cannon. 09055_ Dropped Flail. 09055_ Acquired Gauss Cannon. 09059_ R-06 Scavenger collects Flail. 09077_ Acquired 20 matter. 09200_ B-48 Gladiator springs to life. 09200_ I-36 Angel springs to life. 09200_ S-27 Virus springs to life. 09201_ D-53 Grenadier destroyed. 09205_ L-41 Fighter springs to life. Map ----- +----------------------------------------------------+ | ???????????????????????????????# #?????????? | | ???????????????????????????????# #?????????? | | #############??????????????????# #?????????? | | [! % / #??????????????????# #?????????? | | % %% #??????????????????####+####?????????? | | / #?????????????????????# #????????????? | | #???????????########### #????????????? | | = #??#####????# ## ##???????????? | | #??# #????# # #???????????? | | [ #??# #????# + #???????????? | | ! #??# #????# """ # #???????????? | | #??## ##????# """"" #####???????????? | | #???# #?????# """"" #???????????????? | | ####+############ ####### """"" #???????????????? | | & + """ #???????????????? | | ### ############### #???????????????? | | #?###?????????????########+#???????????????? | | #######????????????????????????# #???????????????? | | ??????????????????##########???# #???????????????? | | ??????????????????#k!i%a]Y*#???# #???????????????? | | ??????????????????# k u! #???# #???????????????? | | ??????????????????#Yi a #???#%#???????????????? | | ??????????????????#i l s #???# #???????????????? | | ??????????????????#l h #???#%#???????????????? | | ??????????????????#Yd%! b#???# #???????????????? | | ??????????????????#iubub @l#?###%###?????????????? | | ??????????????????#######/#### #?????????????? | | ??????????? #?????????????? | | ??????????? #?????????????? | | ??????????? ###???????????? | | ????????????###+########### """" ""#???????????? | | ???????????## #???#r """" T"#???????????? | | ???????????# #???# """" ""#???######### | | ????????????# #???# r"""" ###???# * | | ????????????# #???# """" #?????# | | ????????????# ##### ####### %% | | ????????????# + % + | | ## ?????## ##### #### ######[ | | ??# #???# #??# #????# | | ###????????######+#####???# #??# ###??# = | | ????????????????# #?????###/##+#### [[#??# /! | | ??????########### ####### ## [[#??# ! !! | | + """ ## [[#??# | | ############## ##### # """"" ## ###??# | | #??????# #????? # """"" ## ###### [/ | | #??????# #?????? # """"" ## + % | | ######## #????????# """ ## ###### =! | | #"""""# #????????# ## #????# | | ##""T""#+#####????# ## #????# | | # """ # ???# ## #?????###+#### | +----------------------------------------------------+ Best States ------------- Heat Dissipation 39 Energy Generation 14 Energy Capacity 275 Matter Stores 300 Matter Capacity 300 Sight Range 16 Robot Scan Range 14 Terrain Scan Range 16 Terrain Scan Density 10 Resistance: KI 35 Resistance: TH 35 Resistance: EX 35 Resistance: EM 35 Resistance: I 35 Resistance: S 35 Resistance: P 35 Evasion (%) 50 Targeting Accuracy 5 Recoil Reduction 2 Offensive Hacking 20 Item Schematics ----------------- None Robot Schematics ------------------ None Fabricated ------------ Nothing Repaired ---------- Nothing Studied --------- None Alien Tech Used ----------------- None Achievements -------------- None Challenges ------------ None Game ------ Seed DisposableAccelerationJets Manual? 0 Play Time 00:34:14 Cumulative 206.3 hours Start 2025.12.18 @ 09:54:59 End 2025.12.18 @ 10:31:10 Sessions 1 Manual Loads 0 Difficulty Explorer Special Mode None Game No. 313 Rogue 0 Adventurer 0 Explorer 313 Win Type - Total 0 Types 0/0/0/0/0/0/0/0/0/0 Lore% 71 Gallery% 68 Achievement% 53 Wizard Run 0 Options --------- Layout 1 ASCII 0 Keyboard 0 Movement Mouse Keybinds 0 Fullscreen 1 Font 24/Smallcaps Map View 50x35 Zoom Use 0% Tactical HUD 1 Map Filters NONE Filters NONE Steam 1 RUN: d2f2c7a0-05c5-4912-a73c-f5811bf00653